Cogmind - Beta 14 @@@ ROGUE MODE // 2025.03.28 @ 12:43:31 Player: Tereza Result: Destroyed by H-55 Commando with Gauss Rifle Performance ------------- Evolutions (3) 1500 Regions Visited (13) 2600 Robots Destroyed (149) 745 Value Destroyed (4010) 4010 Prototype IDs (8) 160 Alien Tech Used (0) 0 Bonus (619) 619 TOTAL SCORE: 9634 Bonus ------- High Alert Combat Kills 224 Follower Combat Kills 220 Entered Garrisons 200 Friendly Fire -25 Cogmind --------- Core Integrity 0/700 Matter 201/300 Energy 100/100 System Corruption 19% Temperature Cool (0) Movement Flying (35) Location -7/Lower Caves Parts ------- > --- POWER (1) -------- (None) > --- PROPULSION (4) --- VTOL Module > --- UTILITY (6) ------ Target Analyzer Target Analyzer Hacking Suite > --- WEAPON (2) ------- (None) > --- INVENTORY (5) ---- Improved Deuterium Engine Medium Storage Unit Autogun Enhanced Autogun Remote Datajack Peak State ------------ > --- POWER ------------ Improved Deuterium Engine > --- PROPULSION ------- Light Treads Armored Treads Armored Treads Advanced Treads > --- UTILITY ---------- High-capacity Storage Unit Visual Processing Unit Advanced Visual Processing Unit Experimental Sensor Array Improved Medium Armor Plating Graphene Brace > --- WEAPON ----------- Plasma Cannon Enhanced Autogun > --- INVENTORY -------- Improved Deuterium Engine Micro Fission Core Light Treads Improved Treads Structural Scanner Transport Network Coupler Improved Weapon Cycler Transmission Jammer Improved Medium Armor Plating Hardlight Generator Hacking Suite Hacking Suite System Shield Plasma Cannon Plasma Cannon Enhanced Autogun Rocket Launcher Improved Datajack Remote Datajack Plasma Cutter [Rating: 54] Favorites ----------- Power Light Nuclear Core Engine Ion Engine Power Core Light Nuclear Core Propulsion Light Treads Treads Light Treads Flight Unit VTOL Module Utility High-capacity Storage Unit Device Structural Scanner Storage High-capacity Storage Unit Processor Advanced Visual Processing Unit Hackware Hacking Suite Protection Improved Medium Armor Plating Weapon Enhanced Autogun Energy Gun Beam Rifle Energy Cannon Particle Cannon Ballistic Gun Enhanced Autogun Ballistic Cannon Flak Cannon Launcher Rocket Launcher Impact Weapon Great Maul Slashing Weapon Great Axe Piercing Weapon Spear Special Melee Weapon Improved Datajack Build | -11 -10 -10 -9 -9 -9 -8 -8 -8 -8 -7 -7 -7 -7 ------- Run | Yrd Mat Min Mat Min Exi Min Mat Gar Mat Fac Was Fac Low Slots Evolved 6 | . . . 2 . . . 2 . . 2 . . . Power . | . . . . . . . . . . . . . . Propulsion 2 | . . . . . . . 1 . . 1 . . . Utility 4 | . . . 2 . . . 1 . . 1 . . . Weapon . | . . . . . . . . . . . . . . Parts Attached 135 | 6 14 4 26 . 2 6 38 7 4 13 4 11 . Power 15 | 1 1 . 4 . . 2 4 1 . 1 . 1 . Engine 8 | 1 1 . 2 . . . 2 . . 1 . 1 . Core 7 | . . . 2 . . 2 2 1 . . . . . Reactor . | . . . . . . . . . . . . . . Propulsion 30 | 2 3 2 6 . . 2 9 . . 4 . 2 . Treads 28 | 2 3 2 6 . . 2 9 . . 4 . . . Leg . | . . . . . . . . . . . . . . Wheel . | . . . . . . . . . . . . . . Hover . | . . . . . . . . . . . . . . Flight 2 | . . . . . . . . . . . . 2 . Utility 41 | 1 3 1 7 . 2 . 13 1 2 5 3 3 . Device 16 | . 1 . 3 . 2 . 4 1 2 2 1 . . Storage 5 | 1 2 1 . . . . 1 . . . . . . Processor 5 | . . . . . . . 2 . . 1 . 2 . Hackware 2 | . . . . . . . . . . . 2 . . Protection 13 | . . . 4 . . . 6 . . 2 . 1 . Artifact . | . . . . . . . . . . . . . . Weapon 49 | 2 7 1 9 . . 2 12 5 2 3 1 5 . Energy Gun 6 | . . . 4 . . . 2 . . . . . . Energy Cannon 6 | . . . 2 . . 1 1 1 . 1 . . . Ballistic Gun 20 | 2 7 1 . . . . 4 2 1 1 . 2 . Ballistic Cannon 5 | . . . 2 . . 1 2 . . . . . . Launcher 8 | . . . 1 . . . 3 2 . . 1 1 . Special Weapon . | . . . . . . . . . . . . . . Impact Weapon 1 | . . . . . . . . . 1 . . . . Slashing Weapon 1 | . . . . . . . . . . . . 1 . Piercing Weapon 1 | . . . . . . . . . . . . 1 . Special Melee Weapon 1 | . . . . . . . . . . 1 . . . Unidentified Prototypes 3 | . . . 1 . 1 . 1 . . . . . . Corrupted Parts 1 | . . . . . . . . . . . . 1 . System Corruption 5 | . . . . . . . . . . . . 5 . Parts Lost 40 | . 1 3 7 . . 3 15 . . 1 5 5 . Power 5 | . . . 2 . . 1 2 . . . . . . Propulsion 10 | . . 2 . . . 1 5 . . . 1 1 . Utility 15 | . . . 3 . . . 7 . . . 3 2 . Weapon 10 | . 1 1 2 . . 1 1 . . 1 1 2 . Highest Loss Streak 7 | . 1 2 2 . . 3 7 . . 1 5 4 . To Critical Strikes 1 | . . . 1 . . . . . . . . . . Average Slot Usage (%) 91 | . 98 100 97 88 77 99 92 100 100 98 67 38 35 Engine 5 | . 13 14 4 . . . 3 8 . 6 4 . . Core 4 | . . . 6 11 11 11 4 . 9 . . . . Treads 23 | . 27 28 22 22 22 22 26 27 27 28 15 . . Device 17 | . 13 14 22 22 33 33 16 9 17 18 11 5 . Storage 9 | . 14 14 11 11 11 11 9 9 9 7 4 . . Processor 5 | . . . . . . . 3 18 18 15 11 13 15 Protection 4 | . . . 9 . . . 10 9 . 3 3 . . Energy Gun 1 | . . . 5 . . . 5 . . . . . . Energy Cannon 5 | . . . 11 11 . 10 1 3 9 6 3 . . Ballistic Gun 9 | . 27 28 1 . . . 6 14 8 7 4 . 4 Ballistic Cannon 2 | . . . 3 11 . 10 3 . . . . . . Peak Build Rating 54 | 6 10 11 18 18 26 26 41 41 44 54 48 26 16 Average Rating 24 | 4 9 10 15 17 21 25 28 40 41 50 31 18 14 On Entrance 22 | . 6 10 11 17 18 21 23 41 41 41 48 15 16 Naked Turns . | . . . . . . . . . . . . . . Heaviest Build 75 | 13 32 52 61 58 54 59 75 73 64 69 66 20 3 Greatest Support 82 | 40 40 40 40 40 40 40 62 62 62 82 82 4 4 Greatest Overweight (x) 6 | . . 1 1 1 1 1 1 1 1 1 . 6 . Average Overweight (x) . | . . . 1 1 1 1 . 1 . . . . . Largest Inventory Capacity 20 | 8 15 20 20 20 20 20 20 20 20 20 20 5 5 Average Capacity 17 | 7 10 17 20 20 20 20 20 20 20 20 12 5 5 Most Carried 20 | 4 12 19 20 20 20 19 20 20 20 20 20 5 5 Average Carried 17 | 2 9 16 19 19 19 17 19 19 19 19 11 4 4 Final Capacity 20 | 8 15 20 20 20 20 20 20 20 20 20 5 5 5 Final Carried 20 | 4 12 19 20 20 19 16 20 20 20 20 3 4 5 Class Distribution -------------------- 52% | Mutant 44% | Scavenger-Mutant Dominant Class ---------------- Mutant | -10/Materials Mutant | -10/Mines Scavenger-Mutant | -9/Materials Mutant | -9/Mines Mutant | -9/Exiles Mutant | -8/Mines Scavenger-Mutant | -8/Materials Scavenger-Mutant | -8/Garrison Scavenger-Mutant | -8/Materials Scavenger-Mutant | -7/Factory Hacker-Mutant | -7/Waste Hacker-Mutant | -7/Factory Mutant | -7/Lower Caves Resources | -11 -10 -10 -9 -9 -9 -8 -8 -8 -8 -7 -7 -7 -7 ----------- Run | Yrd Mat Min Mat Min Exi Min Mat Gar Mat Fac Was Fac Low Matter Collected 3347 | 237 437 265 435 12 . 162 757 594 61 224 . 163 . Remotely . | . . . . . . . . . . . . . . Salvage Created 4678 | . 504 358 1331 53 . 167 1084 491 24 224 . 442 . Parts 310 | . 31 26 106 1 . 5 71 37 2 13 . 18 . Haulers Intercepted 4 | . 1 . 1 . . . 2 . . . . . . Recyclers Shooed 3 | . . . 1 . . . . . 1 . . 1 . Parts Field Recycled . | . . . . . . . . . . . . . . Retrieved Matter . | . . . . . . . . . . . . . . Parts Self-Destructed . | . . . . . . . . . . . . . . Prevented . | . . . . . . . . . . . . . . Kills | -11 -10 -10 -9 -9 -9 -8 -8 -8 -8 -7 -7 -7 -7 ------- Run | Yrd Mat Min Mat Min Exi Min Mat Gar Mat Fac Was Fac Low Combat Hostiles Destroyed 124 | . 9 9 33 1 . 7 36 19 . 4 . 6 . Melee 4 | . . . . . . . . . . . . 4 . Guns 63 | . 9 9 7 . . . 18 16 . 3 . 1 . Cannons 42 | . . . 22 1 . 7 11 . . 1 . . . AOE 14 | . . . 3 . . . 7 3 . . . 1 . Classes Destroyed 14 | . 7 1 . 1 . 1 3 . . 1 . . . Worker 2 | . 1 . . . . . 1 . . . . . . Hauler 4 | . 1 . 1 . . . 2 . . . . . . Recycler 7 | . 2 . 2 . . . . . . . . 3 . Operator 4 | . 2 . 2 . . . . . . . . . . Watcher 8 | . 2 . 4 . . . 1 . 1 . . . . Swarmer 59 | . 6 3 15 . . 4 14 13 . . . 4 . Cutter 3 | . . . . . . . 3 . . . . . . Grunt 39 | . 3 4 10 . . 2 13 5 . . . 2 . Brawler 1 | . . . . 1 . . . . . . . . . Duelist 2 | . . . . . . 1 . . . 1 . . . Sentry 17 | . . 2 8 . . . 4 1 . 2 . . . Hunter 1 | . . . . . . . 1 . . . . . . Programmer 1 | . . . . . . . . . . 1 . . . Heavy 1 | . . . . . . . 1 . . . . . . Best Kill Streak 10 | . 7 3 8 1 . 4 10 6 1 2 . 4 . Combat Bots Only 10 | . 3 3 8 1 . 4 10 6 . 2 . 3 . Max Kills in Single Turn 4 | . 1 1 3 1 . 1 4 3 1 1 . 1 . Gunslinging . | . . . . . . . . . . . . . . Exploded 4 | . . . 3 . . . 4 3 . . . 1 . Melee 1 | . . . . . . . . . . . . 1 . Uniques/NPCs Destroyed . | . . . . . . . . . . . . . . Combat | -11 -10 -10 -9 -9 -9 -8 -8 -8 -8 -7 -7 -7 -7 -------- Run | Yrd Mat Min Mat Min Exi Min Mat Gar Mat Fac Was Fac Low Hostile Shots Fired 829 | . 40 53 160 . . 32 253 72 5 60 4 149 1 Missed 249 | . 8 8 51 . . 6 75 22 1 16 . 62 . Damage Taken 7525 | . 343 561 1247 . . 508 2456 577 45 552 257 957 22 Core 1434 | . 65 77 74 . . 52 386 49 10 32 56 611 22 Absorbed by Shields . | . . . . . . . . . . . . . . Ignored by Resistances 240 | . . . . . . . 240 . . . . . . Core Remaining (%) 57 | 100 . 43 . . . 68 . . 19 . . . . Volleys Fired 336 | . 37 25 68 1 . 13 97 49 13 24 4 5 . Largest 2 | . 2 2 2 2 . 2 2 2 2 2 2 1 . Hottest 136 | . 46 46 124 112 . 112 136 105 105 108 108 39 . Shots Fired 650 | . 74 50 135 2 . 26 194 98 15 43 7 5 1 Gun 430 | . 74 50 55 . . . 125 94 2 21 4 4 1 Cannon 210 | . . . 79 2 . 26 63 3 13 22 2 . . Launcher 10 | . . . 1 . . . 6 1 . . 1 1 . Special . | . . . . . . . . . . . . . . Kinetic 404 | . 74 50 32 1 . 13 108 94 2 21 4 4 1 Thermal 236 | . . . 102 1 . 13 80 3 13 22 2 . . Explosive 9 | . . . 1 . . . 6 1 . . 1 . . Electromagnetic 1 | . . . . . . . . . . . . 1 . Robot Hit Streak 14 | . 6 8 8 9 . 8 14 10 3 9 6 4 2 Robot Miss Streak 6 | . 2 3 4 . . 5 6 6 1 3 2 2 . Penetration Max . | . . . . . . . . . . . . . . Secondary Targets 8 | . . 1 . . . . 3 4 . . . . . Max Gunslinging Chain 1 | . . 1 . . . . 1 1 . . . . . Shots Hit Robots 375 | . 39 30 78 1 . 19 120 39 4 26 7 11 1 Core Hits 217 | . 21 14 51 1 . 14 65 24 1 12 4 9 1 Critical Kills 1 | . . . 1 . . . . . . . . . . Critical Parts Destroyed 1 | . 1 . . . . . . . . . . . . Critical Strikes 10 | . 1 . 3 . . . 6 . . . . . . Burn 4 | . . . 2 . . . 2 . . . . . . Meltdown 1 | . . . 1 . . . . . . . . . . Destroy 1 | . 1 . . . . . . . . . . . . Blast 4 | . . . . . . . 4 . . . . . . Melee Attacks 17 | . . . . . . . . . . . . 17 . Impact . | . . . . . . . . . . . . . . Slashing 14 | . . . . . . . . . . . . 14 . Piercing 3 | . . . . . . . . . . . . 3 . Sneak Attacks 4 | . . . . . . . . . . . . 4 . Combat Hostiles . | . . . . . . . . . . . . . . Follow-up Attacks . | . . . . . . . . . . . . . . Damage Inflicted 8752 | . 602 465 1810 20 . 390 2964 883 121 608 299 565 25 Guns 4316 | . 602 465 595 . . . 1362 740 41 332 117 37 25 Cannons 2836 | . . . 1057 20 . 390 961 . 80 276 52 . . Explosions 1154 | . . . 158 . . . 639 143 . . 130 84 . Melee 444 | . . . . . . . . . . . . 444 . Ramming 2 | . . . . . . . 2 . . . . . . Kinetic 4376 | . 602 465 275 . . 218 1524 740 41 332 117 37 25 Thermal 2776 | . . . 1377 20 . 172 799 . 80 276 52 . . Explosive 1070 | . . . 158 . . . 639 143 . . 130 . . Electromagnetic 84 | . . . . . . . . . . . . 84 . Impact . | . . . . . . . . . . . . . . Slashing 444 | . . . . . . . . . . . . 444 . Piercing . | . . . . . . . . . . . . . . Highest Corruption 19 | . 2 2 2 2 2 2 . . . 1 14 19 19 Average Corruption 3 | . 2 2 1 2 2 2 . . . 1 8 14 19 Corruption Purged . | . . . . . . . . . . . . . . Corruption Blocked . | . . . . . . . . . . . . . . Effects 102 | . 3 15 12 10 4 13 . . . 4 4 18 19 Message Errors 23 | . 2 1 2 4 . 4 . . . 2 1 4 3 Matter Fused 25 | . . 6 3 1 2 3 . . . 1 . 2 7 Heat Flow Errors 23 | . . 4 3 1 1 1 . . . . 2 7 4 Energy Discharges 11 | . 1 1 2 1 . 3 . . . 1 . . 2 Parts Fused 1 | . . . 1 . . . . . . . . . . Data Loss (minor) 13 | . . 2 1 3 1 . . . . . 1 3 2 Data Loss (major) 3 | . . . . . . 2 . . . . . 1 . Misfires 1 | . . . . . . . . . . . . . 1 Alerts 1 | . . 1 . . . . . . . . . . . Misdirections 1 | . . . . . . . . . . . . 1 . Overload Shots . | . . . . . . . . . . . . . . Overflow Damage 268 | . . . 17 . . 3 117 . . 5 2 124 . Projectiles 80 | . . . 7 . . 3 65 . . 5 . . . Explosions 64 | . . . 10 . . . 52 . . . 2 . . Melee 124 | . . . . . . . . . . . . 124 . Knockbacks 15 | . . . 6 . . 3 6 . . . . . . Impact . | . . . . . . . . . . . . . . Kinetic 13 | . . . 6 . . 3 4 . . . . . . Secondary 2 | . . . . . . . 2 . . . . . . Self-Inflicted Damage 187 | . . . . . . . 112 16 . . 59 . . Shots 5 | . . . . . . . 3 1 . . 1 . . Rammed . | . . . . . . . . . . . . . . Targets Rammed 1 | . . . . . . . 1 . . . . . . Kicked . | . . . . . . . . . . . . . . Crushed 1 | . . . . . . . 1 . . . . . . Highest Temperature 332 | . 39 280 237 123 219 85 237 209 96 332 181 206 252 Average Temperature 60 | . 8 65 34 81 113 22 74 60 32 134 104 87 106 Received Heat Transfer 1803 | . 87 291 288 . . 204 549 189 9 42 . 144 . Effects 2 | . . . . . . . 2 . . . . . . Interference 2 | . . . . . . . 2 . . . . . . Siege Activations . | . . . . . . . . . . . . . . Robots Corrupted . | . . . . . . . . . . . . . . Combat Hostiles . | . . . . . . . . . . . . . . Parts Fried . | . . . . . . . . . . . . . . Impact Corruptions 1 | . . . . . . . 1 . . . . . . Robots Melted 1 | . . . 1 . . . . . . . . . . Combat Hostiles 1 | . . . 1 . . . . . . . . . . Parts Melted 9 | . . . 7 . . 1 1 . . . . . . Heat Transferred 5873 | . . . 2812 37 . 296 1978 . 150 500 100 . . Parts Sabotaged . | . . . . . . . . . . . . . . Parts Stolen . | . . . . . . . . . . . . . . Parts Stripped . | . . . . . . . . . . . . . . Power Chain Reactions . | . . . . . . . . . . . . . . Alert | -11 -10 -10 -9 -9 -9 -8 -8 -8 -8 -7 -7 -7 -7 ------- Run | Yrd Mat Min Mat Min Exi Min Mat Gar Mat Fac Was Fac Low Peak Influence 941 | . 225 191 527 177 . 105 451 941 550 191 45 350 . Initial 458 | . . . . 177 . . 29 295 458 174 45 16 . Average 220 | . 68 49 324 120 . 33 241 666 505 80 32 120 . Maximum Alert Level 3 | . 1 . 2 . . . 2 3 2 . . 1 . Low Security (%) 58 | 100 96 100 14 100 . 100 35 . . 100 100 73 . Level 1 20 | . 3 . 51 . . . 47 10 9 . . 26 . Level 2 16 | . . . 34 . . . 17 41 90 . . . . Level 3 4 | . . . . . . . . 47 . . . . . Level 4 . | . . . . . . . . . . . . . . Level 5 . | . . . . . . . . . . . . . . High Security . | . . . . . . . . . . . . . . Max Security . | . . . . . . . . . . . . . . Squads Dispatched 13 | . 1 . 3 1 . . 4 . 1 1 . 2 . Investigation 4 | . . . 1 . . . 2 . . . . 1 . Extermination 1 | . . . . . . . . . . 1 . . . Reinforcement 7 | . 1 . 2 . . . 2 . 1 . . 1 . Assault 1 | . . . . 1 . . . . . . . . . Garrison . | . . . . . . . . . . . . . . Intercept . | . . . . . . . . . . . . . . Searches Triggered . | . . . . . . . . . . . . . . Construction Impeded . | . . . . . . . . . . . . . . Haulers Reinforced . | . . . . . . . . . . . . . . Active Scanning Responses . | . . . . . . . . . . . . . . Cargo Convoy Interrupts . | . . . . . . . . . . . . . . Stealth | -11 -10 -10 -9 -9 -9 -8 -8 -8 -8 -7 -7 -7 -7 --------- Run | Yrd Mat Min Mat Min Exi Min Mat Gar Mat Fac Was Fac Low Distress Signals 4 | . 1 . 1 . . . 2 . . . . . . Communications Jammed . | . . . . . . . . . . . . . . Distress Signals . | . . . . . . . . . . . . . . Times Spotted 203 | . 22 10 47 1 . 10 51 23 9 5 6 18 1 Peak Tracking Total 9 | . 4 3 9 . . 4 8 7 4 4 6 5 . Tactical Retreats 16 | . 2 1 2 . . 1 4 1 . 1 . 4 . Traps | -11 -10 -10 -9 -9 -9 -8 -8 -8 -8 -7 -7 -7 -7 ------- Run | Yrd Mat Min Mat Min Exi Min Mat Gar Mat Fac Was Fac Low Traps Triggered 16 | . 4 . 2 . . . 2 6 . 2 . . . Indirectly . | . . . . . . . . . . . . . . Trap Hack Attempts 35 | . . . . . . . . . . 35 . . . Triggered . | . . . . . . . . . . . . . . Disarmed 2 | . . . . . . . . . . 2 . . . Reprogrammed . | . . . . . . . . . . . . . . Reused . | . . . . . . . . . . . . . . Traps Extracted . | . . . . . . . . . . . . . . Installed 2 | . . . 2 . . . . . . . . . . Triggered . | . . . . . . . . . . . . . . Most Traps Carried 3 | . . 3 3 1 . . . . . . . . . Machines | -11 -10 -10 -9 -9 -9 -8 -8 -8 -8 -7 -7 -7 -7 ---------- Run | Yrd Mat Min Mat Min Exi Min Mat Gar Mat Fac Was Fac Low Machines Disabled 11 | . . . 2 . . 1 3 2 1 1 . 1 . Max in Single Turn 1 | . . . 1 . . 1 1 1 1 1 . 1 . Garrison Access 1 | . . . . . . . . . . . . 1 . Garrison Relay 1 | . . . . . . . . 1 . . . . . Machines Repaired . | . . . . . . . . . . . . . . Machines Dismantled . | . . . . . . . . . . . . . . Machines Sabotaged . | . . . . . . . . . . . . . . Overloaded Fab Kills . | . . . . . . . . . . . . . . Hacking | -11 -10 -10 -9 -9 -9 -8 -8 -8 -8 -7 -7 -7 -7 --------- Run | Yrd Mat Min Mat Min Exi Min Mat Gar Mat Fac Was Fac Low Machines Accessed 40 | . 7 . 10 . 1 . 8 3 2 3 . 4 2 Terminals 24 | . 5 . 7 . . . 5 3 2 1 . 1 . Fabricators 2 | . . . . . . . . . . 1 . 1 . Repair Stations 1 | . . . 1 . . . . . . . . . . Recycling Units 6 | . 2 . 2 . . . 2 . . . . . . Scanalyzers 1 | . . . . . . . . . . 1 . . . Garrison Access 3 | . . . . . . . 1 . . . . 2 . Total Hacks 96 | . 23 . 24 . 5 . 15 5 5 4 . 8 7 Successful 53 | . 11 . 12 . 5 . 8 2 2 3 . 3 7 Failed 42 | . 11 . 12 . . . 7 3 3 1 . 5 . Catastrophic 8 | . 1 . 2 . . . 1 1 . 1 . 2 . Database Lockouts 1 | . 1 . . . . . . . . . . . . Manual 31 | . 14 . 9 . . . 5 . . 1 . 2 . Terminals 61 | . 19 . 19 . . . 10 5 5 1 . 2 . Fabricators 3 | . . . . . . . . . . 1 . 2 . Repair Stations 1 | . . . 1 . . . . . . . . . . Recycling Units 12 | . 4 . 4 . . . 4 . . . . . . Scanalyzers 2 | . . . . . . . . . . 2 . . . Garrison Access 5 | . . . . . . . 1 . . . . 4 . Terminal Hacks 37 | . 7 . 10 . 5 . 4 2 2 . . . 7 Record 12 | . . . 1 . 5 . . . . . . . 6 Robot Analysis 10 | . 4 . 5 . . . 1 . . . . . . Prototype ID Bank 3 | . 1 . 1 . . . . . 1 . . . . Open Door 1 | . . . . . . . . . . . . . 1 Level Access Points 1 | . . . . . . . . . 1 . . . . Branch Access Points 2 | . . . 1 . . . 1 . . . . . . Emergency Access Points 1 | . . . . . . . . 1 . . . . . Alert Level 3 | . 1 . 1 . . . 1 . . . . . . Locate Traps 1 | . 1 . . . . . . . . . . . . Hauler Manifests 1 | . . . . . . . 1 . . . . . . Zone Layout 1 | . . . 1 . . . . . . . . . . Patrol Navigation 1 | . . . . . . . . 1 . . . . . Fabricator Hacks 3 | . . . . . . . . . . 1 . 2 . Network Status 1 | . . . . . . . . . . 1 . . . Load Schematic 1 | . . . . . . . . . . . . 1 . Build 1 | . . . . . . . . . . . . 1 . Repair Station Hacks . | . . . . . . . . . . . . . . Recycling Unit Hacks 8 | . 3 . 2 . . . 3 . . . . . . Report Inventory 6 | . 2 . 2 . . . 2 . . . . . . Retrieve Components 2 | . 1 . . . . . 1 . . . . . . Scanalyzer 2 | . . . . . . . . . . 2 . . . Insert Component 1 | . . . . . . . . . . 1 . . . Analyze 1 | . . . . . . . . . . 1 . . . Garrison Access Hacks 2 | . . . . . . . 1 . . . . 1 . Unlock Access 1 | . . . . . . . 1 . . . . . . Seal Access 1 | . . . . . . . . . . . . 1 . Unauthorized Hacks 1 | . 1 . . . . . . . . . . . . Terminals 1 | . 1 . . . . . . . . . . . . Botnet 1 | . 1 . . . . . . . . . . . . Fabricators . | . . . . . . . . . . . . . . Repair Stations . | . . . . . . . . . . . . . . Recycling Units . | . . . . . . . . . . . . . . Scanalyzers . | . . . . . . . . . . . . . . Garrison Access . | . . . . . . . . . . . . . . Data Cores Recovered 1 | . 1 . . . . . . . . . . . . Used . | . . . . . . . . . . . . . . Hacking Detections 29 | . 6 . 9 . . . 3 2 2 3 . 4 . Full Trace Events 3 | . . . 1 . . . . 1 . . . 1 . Feedback Events 1 | . . . 1 . . . . . . . . . . Corruption 1 | . . . 1 . . . . . . . . . . Feedback Blocked . | . . . . . . . . . . . . . . Robot Schematics Acquired . | . . . . . . . . . . . . . . Robots Built . | . . . . . . . . . . . . . . Authchips . | . . . . . . . . . . . . . . Time . | . . . . . . . . . . . . . . Total Robot Build Rating . | . . . . . . . . . . . . . . Part Schematics Acquired 1 | . . . . . . . . . . 1 . . . Parts Built 1 | . . . . . . . . . . . . 1 . Authchips . | . . . . . . . . . . . . . . Time 116 | . . . . . . . . . . . . 116 . Total Part Build Rating 3 | . . . . . . . . . . . . 3 . Parts Repaired . | . . . . . . . . . . . . . . Time . | . . . . . . . . . . . . . . Parts Recycled . | . . . . . . . . . . . . . . Recycled Matter . | . . . . . . . . . . . . . . Retrieved Matter . | . . . . . . . . . . . . . . Retrieved Components 11 | . 10 . . . . . 1 . . . . . . Parts Scanalyzed 1 | . . . . . . . . . . 1 . . . Part Schematics Acquired 1 | . . . . . . . . . . 1 . . . Parts Damaged . | . . . . . . . . . . . . . . Bothacking | -11 -10 -10 -9 -9 -9 -8 -8 -8 -8 -7 -7 -7 -7 ------------ Run | Yrd Mat Min Mat Min Exi Min Mat Gar Mat Fac Was Fac Low Used RIF Installer . | . . . . . . . . . . . . . . Robots Hacked . | . . . . . . . . . . . . . . Non-combat . | . . . . . . . . . . . . . . Combat . | . . . . . . . . . . . . . . Robot Hacks Applied . | . . . . . . . . . . . . . . Relay Couplers Released 5 | . . . . . . . . 5 . . . . . Machine Destruction 5 | . . . . . . . . 5 . . . . . Fabnet Peak Effective % . | . . . . . . . . . . . . . . Robots Rewired . | . . . . . . . . . . . . . . Allies Hacked . | . . . . . . . . . . . . . . Hacks Repelled . | . . . . . . . . . . . . . . Allies | -11 -10 -10 -9 -9 -9 -8 -8 -8 -8 -7 -7 -7 -7 -------- Run | Yrd Mat Min Mat Min Exi Min Mat Gar Mat Fac Was Fac Low Total Allies 6 | . . 1 . 3 . . . 2 . . . . . Largest Group 3 | . . 1 . 3 3 1 . 2 1 . . . . Highest-Rated Group 74 | . . 31 . 74 74 31 . 46 25 . . . . Highest-Rated Ally 31 | . . 31 . 31 31 31 . 25 25 . . . . Total Orders . | . . . . . . . . . . . . . . Ally Attacks 37 | . . . . 21 . 9 . 2 5 . . . . Total Damage 646 | . . . . 324 . 83 . 74 165 . . . . Kills 9 | . . . . 4 . . . 2 3 . . . . Allies Corrupted . | . . . . . . . . . . . . . . Allies Melted . | . . . . . . . . . . . . . . Intel | -11 -10 -10 -9 -9 -9 -8 -8 -8 -8 -7 -7 -7 -7 ------- Run | Yrd Mat Min Mat Min Exi Min Mat Gar Mat Fac Was Fac Low Robot Analysis Total 9 | . 4 . 4 . . . 1 . . . . . . Derelict Logs Recovered 7 | . . 2 . 2 . . . . . . . . 3 Drone Launches . | . . . . . . . . . . . . . . Drone Recoveries . | . . . . . . . . . . . . . . Exploration | -11 -10 -10 -9 -9 -9 -8 -8 -8 -8 -7 -7 -7 -7 ------------- Run | Yrd Mat Min Mat Min Exi Min Mat Gar Mat Fac Was Fac Low Turns Passed 12702 | 82 1206 1202 2175 762 382 1095 2115 1136 448 1124 120 413 442 Spaces Moved 6437 | 45 647 582 795 310 158 433 807 420 209 545 131 575 780 Core 625 | 2 . . . . . . . . . . 100 523 . Treads 4980 | 43 647 582 795 310 158 433 807 420 209 545 31 . . Legs . | . . . . . . . . . . . . . . Wheels . | . . . . . . . . . . . . . . Hover . | . . . . . . . . . . . . . . Flight 832 | . . . . . . . . . . . . 52 780 Fastest Speed 35 | 50 160 160 240 240 240 240 158 241 161 161 50 35 35 Average Speed 170 | 155 160 189 240 240 240 240 216 241 164 172 76 53 35 Slowest Speed 350 | 160 160 240 240 240 240 240 241 241 241 241 161 350 35 Overloaded Moves . | . . . . . . . . . . . . . . Propulsion Burnouts . | . . . . . . . . . . . . . . Robots Hopped 2 | . . . . . . . . . . . . 2 . Cave-ins Triggered . | . . . . . . . . . . . . . . Exploration Rate (%) 58 | 3 99 97 87 89 51 77 71 64 14 13 75 20 61 Regions Visited 13 Branch Regions 5 Pre-discovered Areas 3 | . . 1 . 1 1 . . . . . . . . Known Exits Taken 3 | . . . 1 . . . 1 . 1 . . . . Unknown Exits Taken 7 | 1 1 1 . 1 1 1 . . . . . 1 . Scrap Searched 3 | . . 1 . 1 . 1 . . . . . . . Spaces Dug 10 | . . . . . . . 1 . 8 . . 1 . Terrain Destroyed 99 | . . . 16 . . . 57 2 9 . 14 1 . Melee 1 | . . . . . . . . . . . . 1 . Projectile 39 | . . . 1 . . . 29 . 9 . . . . AOE 59 | . . . 15 . . . 28 2 . . 14 . . Terrain Rammed . | . . . . . . . . . . . . . . Walls Destroyed . | . . . . . . . . . . . . . . Machines Disabled . | . . . . . . . . . . . . . . Actions | -11 -10 -10 -9 -9 -9 -8 -8 -8 -8 -7 -7 -7 -7 --------- Run | Yrd Mat Min Mat Min Exi Min Mat Gar Mat Fac Was Fac Low Total 7601 | 54 758 645 943 328 163 463 1011 504 299 699 144 641 949 Wait 458 | . 42 22 15 14 . 12 19 6 68 62 . 30 168 Move 6422 | 44 646 581 794 309 157 432 807 419 208 545 130 570 780 Hop 2 | . . . . . . . . . . . . 2 . Pick Up 92 | 4 12 11 15 2 . . 27 5 3 9 1 3 . Fast Attach 47 | 6 9 . 6 . 1 1 11 1 . 2 2 8 . Attach 36 | . 1 3 5 . 1 4 14 . 1 3 1 3 . Detach 6 | . . . . . 1 . 1 . . 1 . 2 1 Swap 52 | . 4 1 15 . . 1 13 6 3 8 1 . . Drop 83 | . 7 2 23 2 3 . 21 6 3 10 5 1 . Fire 336 | . 37 25 68 1 . 13 97 49 13 24 4 5 . Melee 17 | . . . . . . . . . . . . 17 . Ram . | . . . . . . . . . . . . . . Kick . | . . . . . . . . . . . . . . Crush 1 | . . . . . . . 1 . . . . . . Escape Stasis 12 | . . . . . . . . 12 . . . . . Rewire . | . . . . . . . . . . . . . . Trap 37 | . . . 2 . . . . . . 35 . . . Miscellaneous . | . . . . . . . . . . . . . . Route ------- -11/Scrapyard -10/Materials (discovered 4 exits: *Mat x3 / [*Min]) -10/Mines (discovered 3 exits: *Mat x2 / Sub) -9/Materials (discovered 4 exits: *Mat x2 / *Min x2) -9/Mines (discovered 3 exits: *Mat x2 / *Exi) -9/Exiles -8/Mines -8/Materials (discovered 4 exits: *Fac x3 / Gar) -8/Garrison -8/Materials (discovered 3 exits: *Fac x3) -7/Factory -7/Waste -7/Factory -7/Lower Caves History --------- Turn | Location | Event 31 | -11/Scrapyard | Discovered new exit (range 15) 83 | -11/Scrapyard | Entered Materials 309 | -10/Materials | Build established: Mutant 488 | -10/Materials | Discovered new exit (range 11) 589 | -10/Materials | Central database locked down 741 | -10/Materials | Discovered new exit (range 9) 936 | -10/Materials | Discovered new exit (range 9) 1130 | -10/Materials | Discovered new exit (range 15) 1289 | -10/Materials | Entered Mines 1298 | -10/Mines | Met a Derelict bent on vengeance 1365 | -10/Mines | Received a Rocket Launcher from a helpful Derelict 1649 | -10/Mines | Discovered new exit (range 14) 1757 | -10/Mines | Core integrity fell below 50% 1814 | -10/Mines | Discovered new exit (range 6) 1816 | -10/Mines | Received a Mining Laser from a helpful Derelict 1934 | -10/Mines | Identified exit to Subcaves 1969 | -10/Mines | Found DCF Scrap (15 items) 2017 | -10/Mines | Found a hidden stash of uninstalled traps 2056 | -10/Mines | Learned location of Mines (-8) 2491 | -10/Mines | Entered Materials 2491 | -9/Materials | Evolved 2 slots: Utility x2 2510 | -9/Materials | Discovered new exit (range 15) 2718 | -9/Materials | Destroyed 8 combat bots 2968 | -9/Materials | Discovered new exit (range 5) 3029 | -9/Materials | Build established: Scavenger-Mutant 3199 | -9/Materials | Identified exit to Mines 4137 | -9/Materials | Discovered new exit (range 15) 4632 | -9/Materials | Build established: Mutant 4666 | -9/Materials | Entered Mines 4822 | -9/Mines | Discovered new exit (range 6) 4922 | -9/Mines | Found a damaged Exp. Sensor Array with a note attached 4927 | -9/Mines | Found Prototype Device 4943 | -9/Mines | Found DCF Scrap (12 items) 5184 | -9/Mines | Met a Derelict testing a Signal Generator 5193 | -9/Mines | Found Signal Generator 5353 | -9/Mines | Learned location of 1 exit from Materials 5362 | -9/Mines | Discovered new exit (range 9) 5417 | -9/Mines | Deemed a non-threat by the Exiles lab entrance 5417 | -9/Mines | Discovered new exit (range 5) 5428 | -9/Mines | Entered Exiles 5428 | -9/Exiles | Accompanied by 3 allies 5428 | -9/Exiles | Identified Exp. Sensor Array 5458 | -9/Exiles | Led the pair of lost Derelicts to a safe place 5495 | -9/Exiles | Met 8R-AWN 5531 | -9/Exiles | Met EX-HEX 5608 | -9/Exiles | Met EX-BIN 5644 | -9/Exiles | Met EX-DEC 5658 | -9/Exiles | Learned location of Zion (-6) 5778 | -9/Exiles | Discovered new exit (range 15) 5810 | -9/Exiles | Entered Mines 5810 | -8/Mines | Accompanied by 1 ally 6874 | -8/Mines | Discovered new exit (range 13) 6905 | -8/Mines | Entered Materials 6905 | -8/Materials | Evolved 2 slots: Propulsion x1, Utility x1 6906 | -8/Materials | Identified exit to Factory 6931 | -8/Materials | Lost 3 parts (1p1n1w) 7359 | -8/Materials | Lost 3 parts (3u) 7751 | -8/Materials | Destroyed 8 combat bots 7841 | -8/Materials | Build established: Scavenger-Mutant 8104 | -8/Materials | Discovered exit to Factory (range 10) 8527 | -8/Materials | Core integrity fell below 50% 8554 | -8/Materials | Build established: Mutant 8562 | -8/Materials | Destroyed 10 combat bots 8579 | -8/Materials | Lost 7 parts (1p3n2u1w) 8731 | -8/Materials | Discovered exit to Factory (range 9) 8915 | -8/Materials | Build established: Scavenger-Mutant 9020 | -8/Materials | Identified exit to Garrison 9020 | -8/Materials | Entered Garrison 9212 | -8/Garrison | Triggered checkpoint 9242 | -8/Garrison | Garrison Relay disabled 9412 | -8/Garrison | Triggered checkpoint 9566 | -8/Garrison | Triggered checkpoint 9794 | -8/Garrison | Triggered checkpoint 9898 | -8/Garrison | Rescued a captive Derelict 9899 | -8/Garrison | Rescued a captive Derelict 10002 | -8/Garrison | Discovered new exit (range 10) 10156 | -8/Garrison | Entered Materials 10156 | -8/Materials | Accompanied by 1 ally 10577 | -8/Materials | Core integrity fell below 20% 10604 | -8/Materials | Entered Factory 10604 | -7/Factory | Evolved 2 slots: Propulsion x1, Utility x1 11728 | -7/Factory | Sucked down chute 11728 | -7/Factory | Entered Waste 11743 | -7/Waste | EMP discharged 11744 | -7/Waste | Spotted C-40 Crusher 11784 | -7/Waste | Crushed by Compactor (1 part destroyed, 2 dropped) 11787 | -7/Waste | Crushed by Compactor (1 part destroyed, 1 dropped) 11790 | -7/Waste | Crushed by Compactor (1 part destroyed, 1 dropped) 11793 | -7/Waste | Crushed by Compactor (1 part destroyed, 1 dropped) 11800 | -7/Waste | Spotted C-40 Crusher 11816 | -7/Waste | Spotted C-40 Crusher 11821 | -7/Waste | Spotted C-40 Crusher 11824 | -7/Waste | Lost 5 parts (1n3u1w) 11829 | -7/Waste | Spotted C-40 Crusher 11837 | -7/Waste | Spotted C-40 Crusher 11840 | -7/Waste | Discovered new exit (range 16) 11843 | -7/Waste | EMP discharged 11843 | -7/Waste | System corruption reached 10% 11848 | -7/Waste | Entered Factory 12058 | -7/Factory | Discovered new exit (range 7) 12073 | -7/Factory | Build established: Hacker-Mutant 12104 | -7/Factory | Core integrity fell below 50% 12159 | -7/Factory | Lost 4 parts (2u2w) 12163 | -7/Factory | Core integrity fell below 20% 12226 | -7/Factory | Fabricated Enh. Autogun? 12261 | -7/Factory | Entered Lower Caves 12263 | -7/Lower Caves | Learned Factory garrison access intel 12324 | -7/Lower Caves | Learned Factory emergency access door positions 12384 | -7/Lower Caves | Build established: Mutant 12418 | -7/Lower Caves | Learned 8 Research zone layouts 12418 | -7/Lower Caves | Learned Factory security intel 12418 | -7/Lower Caves | Learned Factory garrison access intel 12703 | -7/Lower Caves | Destroyed by H-55 Commando with Gauss Rifle Last Messages --------------- >>Record "Event 004672186997" Scouting mission reported back with intel. Data stored: Factory garrison access intel. 12424_ System corrupted: Energy discharge (-36). 12442_ System corrupted: Matter fused (-7). 12459_ System corrupted: Matter fused (-8). 12479_ System corrupted: Matter fused (-7). 12508_ System corrupted: Matter fused (-5). 12523_ System corrupted: FCS attempts to trigger Enh. Autogun. 12523_ System corrupted: Enh. Autogun misfires. 12544_ System corrupted: Energy discharge (-28). 12563_ System corrupted: Matter fused (-8). 12580_ System corrupted: Heat flow error (+173). 12595_ M|FKEUEYS=PBRSA=6 K/NNISP,